{"text_format":"1","workbook":"xlsx","n_sheets":4,"sheets":["◆アンケートの前に","◆アンケート","その他","元ファイル"],"not_rendered":{"charts":0,"images":4,"macros":1,"external_links":0,"defined_names":0,"comments":0,"pivot_tables":0},"unopened":[],"bounds":{"document_bytes":16777216,"sheet_cells":100000,"rows_first":2000,"rows_last":500,"rows_between":2000,"halvings":0,"cell_chars":16384,"cell_head_chars":4096},"cells_cut":0,"cells_raw":0,"read":"whole","date_system":"1900"}

{"sheet":"◆アンケートの前に","index":0,"n_rows":47,"n_cols":8,"rows_kept":47,"cut":false,"hidden":false,"merged":[]}
[]
[null,null,"平成26年度補正ものづくり・商業・サービス革新補助金　　簡易診断シート（ものづくり用）\n\n～ 簡単操作方法 ～"]
[]
[null,"◆","始める前に"]
[null,null,"[数式バー]の上に黄色く表示されている『コンテンツの有効化』を押してください。"]
[null,null,"※ コンテンツを有効化することで、このファイルがアンケート回答可能な状態になります。"]
[]
[]
[]
[]
[]
[]
[]
[]
[]
[]
[null,"◆","操作方法"]
[null,null,"1,[◆アンケート]シートを選択します"]
[null,null,"2,11個の問いにご回答ください"]
[null,null,"2-1,YES / NO及び解除の操作"]
[]
[null,null,"2-2,チェックボックスの操作"]
[]
[null,null,"2-3,直接入力の操作"]
[null,null,"設問⑧と⑨は、直接該当セルに入力してください"]
[]
[null,"◆","採点"]
[null,null,"【採点結果ボタン】を押す"]
[null,null,"採点結果が8点以下の場合は、再考くださいませ"]
[null,null,"採点結果が8点よりも大きい場合は、このファイルを『大美賀 功貴税理士事務所』へメールにて送信してください"]
[]
[null,"◆","メール送信"]
[null,null,"2-1,ご使用されているパソコンにOUTLOOK（メールソフト）が設定されている方"]
[null,null,"2-1-1,[メール送信]ボタンを押してください。"]
[null,null,"2-1-2,OUTLOOK(メールソフト）が起動します"]
[null,null,"2-1-3,本文を記入し、送信ボタンを押して、送信してください"]
[null,null,"2-2,ご使用されているパソコンにOUTLOOK（メールソフト）が設定されていない方",null,null,null,null,"じょ"]
[null,null,"2-2-1,Gmalなど、お使いのメールソフトに下記のアドレス、必ずこのファイルを添付し、送信してください。"]
[null,null,"メールアドレス：omika@omikatax.sakura.ne.jp"]
[]
[null,"◆","使用上の注意"]
[null,null,"※ このExcelファイルは『平成26年度補正ものづくり・商業・サービス革新補助金』申請前の判断基準とするために使用するものです"]
[null,null,"1,このExcelファイルのコンテンツは、すべて『大美賀 功貴税理士事務所』に権利があります"]
[null,null,"2,許可なく複製など、上記の使用目的以外の行為を固く禁じます"]
[null,null,"3,各シートは保護がかかっており、印刷することもできません"]
[null,null,"4,不明な点などありましたら、下記メールアドレスまでご連絡ください。"]
[null,null,"メールアドレス：omika@omikatax.sakura.ne.jp"]

{"sheet":"◆アンケート","index":1,"n_rows":36,"n_cols":15,"rows_kept":36,"cut":false,"hidden":false,"merged":[[7,5,7,7],[22,2,22,7],[24,2,24,4],[18,5,18,7],[20,5,20,7],[12,2,12,3],[13,2,13,3],[28,2,28,3],[19,13,20,13],[14,5,14,7],[14,2,21,3],[15,10,21,10],[15,12,21,12],[22,10,23,10],[22,12,23,12],[26,10,27,10],[26,12,27,12],[25,5,25,7],[25,1,27,1],[25,2,27,3],[26,5,26,7],[27,5,27,7],[22,1,23,1],[23,3,23,7],[14,1,21,1],[15,5,15,7],[17,5,17,7],[19,5,19,7],[21,5,21,7],[16,5,16,7],[30,4,30,7],[34,5,35,7],[0,1,0,7],[2,1,5,7],[24,5,24,6],[28,6,28,7],[13,6,13,7],[12,6,12,7],[11,6,11,7],[10,6,10,7],[9,6,9,7],[8,6,8,7],[8,2,8,3],[9,2,9,3],[10,2,10,3],[11,2,11,3]]}
[null,"平成26年度補正ものづくり・商業・サービス革新補助金　　簡易診断シート（ものづくり用）"]
[]
[null,"　このシートは、平成26年度補正ものづくり・商業・サービス革新補助金の申請をするにあたって事前に採択の可能性について診断するシートです。このシートの最後に算出される点数が8点（最高20点）を超えた場合には採択の可能性が高いものと判断できます。\n　※ ただし、事前のヒヤリング段階での判断ですので、申請後の結果につきましては責任は負えません。"]
[]
[]
[]
[]
[null,"No",null,"質問事項","解除","選択項目",null,null,null,null,"No","回答","点数"]
[null,"①","新たな事業を行うために、平成26年7月から平成27年3月くらいまでに設備投資を行う予定がある。",null,null,"YES","NO",null,null,null,"①",0,{"$f":"IF(L9=\"\",\"\",IF(L9=\"Y\",1,0))","v":0}]
[null,"②","設備資金の支払いは振込若しくは現金払いであり手形や相殺ではない。",null,null,"YES","NO",null,null,null,"②",0,{"$f":"IF(L10=\"\",\"\",IF(L10=\"Y\",1,0))","v":0}]
[null,"③","投資する設備は、新たな事業に使用するものであって他の目的には使えない。",null,null,"YES","NO",null,null,null,"③",0,0]
[null,"④","購入する設備は既に契約や発注を済ませた。",null,null,"YES","NO",null,null,null,"④",0,{"$f":"IF(L12=\"\",\"\",IF(L12=\"N\",1,0))","v":0}]
[null,"⑤","購入する設備は、自社で使用するのみで他社には使用させない。",null,null,"YES","NO",null,null,null,"⑤",0,0,"無回答数"]
[null,"⑥","購入する設備は、新事業が終わったら売却又は廃棄をする。",null,null,"YES","NO",null,null,null,"⑥",0,{"$f":"IF(L14=\"\",\"\",IF(L14=\"N\",1,0))","v":0},{"$f":"COUNTIF($L$9:$L$14,0)","v":6}]
[null,"⑦","設備投資を行うことで、どのような効果が期待できそうですか？\n選んでください。（複数回答可）",null,"チェック","選択項目"]
[null,null,null,null,null,"コストダウン",null,null,null,null,"⑦",0,{"$f":"IF(O19=\"\",N19,IF(O19=3,N19+1,IF(O19=4,N19+2,N19)))","v":0}]
[null,null,null,null,null,"世の中に無い\n製品ができる",null,null,null,null,null,0]
[null,null,null,null,null,"売上があがる",null,null,null,null,null,0,null,"回答数","2チェック"]
[null,null,null,null,null,"利益が増える",null,null,null,null,null,0,null,{"$f":"COUNTIF($L$16:$L$21,-1)","v":0},{"$f":"IF(AND(L18=-1,L19=-1),4,IF(AND(L18=-1,N19>=2),3,IF(AND(L19=-1,N19>=2),3,\"\")))","v":""}]
[null,null,null,null,null,"納期の短縮が可能",null,null,null,null,null,0,null,"効果無い\n回答の有無"]
[null,null,null,null,null,"品質が向上する",null,null,null,null,null,0]
[null,null,null,null,null,"効果は特に無い",null,null,null,null,null,0,null,{"$f":"IF(L22=-1,\"有\",\"無\")","v":"無"}]
[null,"⑧","どのような機械ですか？　簡単に説明してください。",null,null,null,null,null,null,null,"⑧","文字数",{"$f":"IF(L24<50,0,1)","v":0}]
[null,null,"内容説明",null,null,null,null,null,null,null,null,{"$f":"LEN(D24)","v":0},null,"無回答数"]
[null,"⑨","設備投資にかかる費用はいくら位ですか？（税抜で記入してください。）",null,null,null,null,"円位",null,null,"⑨",{"$f":"IF(F25=\"\",0,F25)","v":0},{"$f":"IF(L25>=500000,1,0)","v":0},{"$f":"COUNTIF($L$24:$L$25,0)","v":2}]
[null,"⑩","補助金は、経費精算後の後払いになります。\n当初、今回の事業に係る費用は、どのように捻出されますか？",null,"チェック","選択項目"]
[null,null,null,null,null,"自己資本",null,null,null,null,"⑩",0,{"$f":"IF(AND(L27=-1,L28=-1),1,IF(L27=-1,2,IF(L28=-1,0,\"\")))","v":""}]
[null,null,null,null,null,"借入",null,null,null,null,null,0,null,"無回答数"]
[null,"⑪","補助金を受けられなくても今回の事業を実施しますか？",null,null,"YES","NO",null,null,null,"⑪",0,{"$f":"IF(L29=\"\",\"\",IF(L29=\"Y\",2,0))","v":0},{"$f":"COUNTIF($L$27:$L$29,0)","v":3}]
[]
[null,null,null,null,null,null,null,null,null,null,null,"合計",{"$f":"IF(AND(N14=6,N19=0,N25=2,N29=3),0,IF(OR(AND(N14>=1,N14<6),N25>=1,N29=2,N22=\"有\"),8,SUM(M9:M14,M16:M25,M27:M29)))","v":0}]
[]
[null,null,"貴　社　名："]
[null,null,"担当者名："]
[null,null,"電話番号："]
[null,null,"Ｍａｉｌ　　："]

{"sheet":"その他","index":2,"n_rows":4,"n_cols":4,"rows_kept":4,"cut":false,"hidden":true,"merged":[]}
[null,null,null,"状態"]
["印刷操作：","可","不可",1]
[]
["パスワード：","omika0420"]

{"sheet":"元ファイル","index":3,"n_rows":30,"n_cols":5,"rows_kept":30,"cut":false,"hidden":true,"merged":[[26,2,26,3],[10,2,10,3],[17,2,17,3],[18,2,18,3],[19,2,19,3],[20,2,20,3]]}
[]
[]
[null,"平成26年度補正ものづくり・商業・サービス革新補助金　　簡易診断シート（ものづくり用）"]
[]
[null,"　このシートは、平成26年度補正ものづくり・商業・サービス革新補助金の申請をするにあたって"]
[null,"事前に採択の可能性について診断するシートです。"]
[null,"このシートの最後に算出される点数が10点（最高１5点）を超えた場合には採択の可能性が高いものと判断できます。"]
[null,"ただし、事前のヒヤリング段階での判断ですので、申請後の結果につきましては責任は負えません。"]
[]
[]
[null,"質問事項","回答欄"]
[null,"①　新たな事業を行うために、平成２６年７月から平成２７年３月くらいまでに設備投資を行う予定がある。","ＹＥＳ","ＮＯ","ＹＥＳ1点"]
[null,"②　設備資金の支払いは振込若しくは現金払いであり手形や相殺ではない。","ＹＥＳ","ＮＯ","ＹＥＳ1点"]
[null,"③　投資する設備は、新たな事業に使用するものであって他の目的には使えない。","ＹＥＳ","ＮＯ","ＹＥＳ1点"]
[null,"④　購入する設備は既に契約や発注を済ませた。","ＹＥＳ","ＮＯ","ＮＯ1点"]
[null,"⑤　購入する設備は、自社で使用するのみで他社には使用させない。","ＹＥＳ","ＮＯ","ＹＥＳ1点"]
[null,"⑥　購入する設備は、新事業が終わったら売却又は廃棄をする。","ＹＥＳ","ＮＯ","ＮＯ1点"]
[null,"⑦　設備投資を行うことで、どのような効果が期待できそうですか？選んでください。（複数回答可）","コストダウン／世の中にない製品ができる／売上があがる／利益が増える／納期の短縮が可能／品質が向上する／効果は特にない",null,"売上が上がると利益が増えるの両方に着いたら3点、片方と他（効果は特にない以外）でしたら2点、その他（効果は特にない以外）は1点"]
[null,"⑧　どのような機械ですか？簡単に説明してください。",null,null,"50文字以上書いてあれば1点"]
[null,"⑨　設備投資にかかる費用はいくら位ですか？（税抜で記入してください。）","　　　　　　円位",null,"50万円以上で1点"]
[null,"⑩　補助金は、経費精算後の後払いになります。当初、今回の事業に係る費用は、どのように捻出されますか？","自己資金／借入／両方",null,"自己資金2点、借入0点、両方1点"]
[null,"⑪　補助金を受けられなくても今回の事業を実施しますか？","ＹＥＳ","ＮＯ","ＹＥＳ2点"]
[]
[null,"①～⑥のなかで一つでも点がつかないものがあったら合計を8点にしてください。⑦で効果は特にないをつけた場合も8点にしてください。"]
[null,null,"採点結果"]
[]
[null,"貴　社　名："]
[null,"担当者名："]
[null,"電話番号："]
[null,"Ｍａｉｌ　　："]